bitfinex/quotes_SOLUSD_20250301
["timestamp","ask_amount","ask_price","bid_price","bid_amount"]
[1740849332694,6.76,140.03,140.02,2.0]
[1740849333203,7.2035,140.05,140.02,2.0]
[1740849334008,0.063,140.05,140.03,4.0]
[1740849336602,0.063,140.05,140.02,0.03]
[1740849336812,0.063,140.05,140.02,2.03]
[1740849337310,83.0,140.04,140.02,2.03]
[1740849338389,90.1411,140.04,140.02,2.03]
[1740849338906,90.1411,140.04,140.02,0.03]
[1740849342920,83.0,140.03,140.02,0.03]
[1740849344906,90.1413,140.03,140.02,0.03]
[1740849348615,32.55094886,140.03,140.02,0.03]
[1740849348815,40.78956789,140.03,140.02,0.0001]
[1740849349498,42.32516789,140.03,140.02,0.0001]
[1740849354423,22.13991903,140.03,140.02,0.0001]
[1740849356421,40.78956789,140.03,140.02,0.0001]
[1740849357325,42.37546789,140.03,140.02,0.0001]
[1740849358015,42.43846789,140.03,140.02,0.0001]
[1740849361832,48.51051109,140.03,140.02,0.0001]
[1740849362733,20.0,139.99,139.96,1e-08]
[1740849363032,18.64964886,139.97,139.96,1e-08]
[1740849364538,26.88826789,139.97,139.96,1e-08]
[1740849365115,34.03256789,139.97,139.96,1e-08]
[1740849365323,37.68414986,139.97,139.96,1e-08]
[1740849368241,6.76,139.97,139.96,1e-08]
[1740849369119,13.9043,139.97,139.96,1e-08]
[1740849369450,32.55394886,139.97,139.96,1e-08]
[1740849372027,42.42996789,139.97,139.96,1e-08]
[1740849372225,48.50201109,139.97,139.96,1e-08]
[1740849376038,46.86461109,139.97,139.96,1e-08]
[1740849377036,40.10461109,139.97,139.96,1e-08]
[1740849377238,46.86461109,139.97,139.96,1e-08]
[1740849377451,32.55394886,139.97,139.96,1e-08]
[1740849377685,13.9043,139.97,139.96,1e-08]
[1740849378450,17.40259293,139.98,139.96,1e-08]
[1740849379635,18.64964886,139.97,139.96,1e-08]
[1740849380134,17.40259293,139.98,139.96,1e-08]
[1740849387060,18.64964886,139.97,139.96,1e-08]
[1740849387554,7.144,139.98,139.96,4.00000001]
[1740849388249,7.144,139.98,139.97,2.0]
[1740849388555,7.144,139.98,139.97,4.0]
[1740849389455,7.144,139.98,139.97,5.388176]
[1740849390952,17.8583,140.0,139.99,2.0]
[1740849391158,31.7611,140.0,139.99,2.0]
[1740849392161,13.9018,140.02,140.01,4.0]
[1740849393165,13.9018,140.02,140.0,4.0]
[1740849393467,31.7563,140.02,139.99,2.0]
[1740849393639,18.64964886,140.01,139.98,2.0]
[1740849393841,18.64964886,140.01,139.98,4.0]
[1740849394054,31.7563,140.02,139.99,4.0]
[1740849394851,31.7563,140.02,140.01,2.0]
[1740849394852,13.9018,140.02,140.01,2.0]
[1740849395258,2.0,139.8,139.75,51.59753408]
[1740849395549,10.1517,139.84,139.7,50.73989907]
[1740849395550,1.52216468,139.71,139.7,50.73989907]
[1740849395757,1.52216468,139.69,139.68,128.84982502]
[1740849395940,21.52216468,139.69,139.68,99.70482837]
[1740849396139,1.52216468,139.7,139.68,99.70482837]
[1740849396363,1.52216468,139.69,139.68,99.70482837]
[1740849396870,1.52216468,139.69,139.68,8.20067576]
[1740849397358,1.52216468,139.65,139.64,0.38529366]
[1740849397862,36.72475897,139.65,139.61,315.63703115]
[1740849398059,4.1804101,139.65,139.61,315.63703115]
[1740849398457,35.03369563,139.64,139.61,315.63703115]
[1740849398652,35.03369563,139.64,139.6,132.6]
[1740849398852,6.19378043,139.64,139.6,132.6]
[1740849399151,6.19378043,139.64,139.59,0.85348]
[1740849399152,1.52216468,139.63,139.59,0.85348]
[1740849399347,37.12106582,139.63,139.59,0.85348]
[1740849399549,1.52216468,139.63,139.59,0.85348]
[1740849399748,37.12106582,139.63,139.59,0.85348]
[1740849399962,1.52216468,139.63,139.59,0.85348]
[1740849400139,4.67161575,139.62,139.59,0.85348]
[1740849400339,1.52216468,139.61,139.59,0.85348]
[1740849400553,4.67161575,139.62,139.59,134.01131532]
[1740849400764,38.4871355,139.62,139.6,0.47783532]
[1740849401256,38.4871355,139.62,139.59,152.66096418]
[1740849401464,38.4871355,139.62,139.6,0.47783532]
[1740849401765,1.79677529,139.61,139.6,19.12748418]
[1740849402064,1.79677529,139.61,139.59,134.01131532]
[1740849402364,35.61229504,139.61,139.59,108.56955265]
[1740849402857,47.78147579,139.61,139.59,108.56955265]
[1740849403162,1.79677529,139.6,139.59,73.61756321]
[1740849404141,19.32315415,139.61,139.59,64.3773039]
[1740849406153,19.32315415,139.61,139.59,64.4073039]
[1740849406364,19.32315415,139.61,139.59,0.03]
[1740849406762,1.79745506,139.6,139.59,0.03]
[1740849406970,86.31961974,139.6,139.59,0.03]
[1740849407861,31.75961974,139.6,139.59,0.03]
[1740849408258,34.63632996,139.6,139.59,0.03]
[1740849409454,42.2651713,139.6,139.59,0.03]
[1740849409864,30.30928057,139.6,139.59,0.03]
[1740849410065,4.0,139.59,139.53,18.64964886]
[1740849410369,87.0,139.59,139.52,18.64964886]
[1740849411441,1.79745506,139.58,139.52,18.64964886]
[1740849411648,1.79745506,139.58,139.52,25.81704886]
[1740849411858,3.79745506,139.58,139.52,25.81704886]
[1740849412459,1.79745506,139.58,139.52,25.81704886]
[1740849412661,1.79745506,139.57,139.52,25.81704886]
[1740849412863,1.79745506,139.57,139.52,43.73554886]
[1740849413062,5.506e-05,139.57,139.56,38.64964886]
[1740849413272,4.0,139.64,139.56,105.54532461]
[1740849413460,2.0,139.64,139.57,18.64964886]
[1740849413646,2.0,139.64,139.58,7.1643]
[1740849413852,2.0,139.63,139.58,7.1643]
[1740849414055,4.0,139.63,139.58,7.1643]
[1740849414452,4.0,139.62,139.58,7.1643]
[1740849414654,4.0,139.62,139.57,7.1646]
[1740849415072,2.0,139.61,139.57,7.1646]
[1740849415279,4.0,139.61,139.57,7.1646]
[1740849415886,4.0,139.61,139.55,36.56314886]
[1740849416170,4.0,139.61,139.16,6.0573]
[1740849416171,2.0,139.27,139.16,6.0573]
[1740849416353,2.0,139.33,139.17,0.29]
[1740849416675,2.0,139.32,139.17,10.46]
[1740849416857,10.44,139.36,139.17,10.46]
[1740849416858,4.0,139.35,139.17,207.09837575]
[1740849417062,2.0,139.36,139.17,207.09837575]
[1740849417254,2.0,139.31,139.18,25.1472]
[1740849417555,4.0,139.34,139.19,10.56]
[1740849417756,4.0,139.33,139.19,207.19837575]
[1740849418165,4.0,139.33,139.22,20.0]
[1740849418364,4.88207857,139.33,139.22,208.68565092]
[1740849418660,2.88207857,139.33,139.22,207.17837575]
[1740849419070,2.88207857,139.33,139.25,21.5821]
[1740849419248,0.99667302,139.39,139.34,20.0]
[1740849419445,2.0,139.43,139.34,20.0]
[1740849419446,2.0,139.43,139.35,10.52]
[1740849419645,2.99667302,139.44,139.35,10.52]
[1740849419845,2.0,139.43,139.35,10.52]
[1740849421184,0.99667302,139.44,139.38,20.0]
[1740849421384,2.0,139.5,139.42,20.0]
[1740849421565,2.0,139.51,139.42,30.46]
[1740849422275,2.0,139.51,139.42,248.56]
[1740849422479,2.0,139.51,139.43,1.50525948]
[1740849422857,2.0,139.51,139.42,248.56]
[1740849423458,2.0,139.51,139.43,7.172]
[1740849424674,2.0,139.51,139.4,7.1736]
[1740849424675,2.0,139.45,139.4,7.1736]
[1740849425175,4.0,139.47,139.4,7.1736]
[1740849425685,2.0,139.45,139.4,7.1736]
[1740849425984,2.0,139.45,139.39,140.1137]
[1740849426358,2.0,139.46,139.39,140.1137]
[1740849426561,2.0,139.45,139.39,140.1137]
[1740849426993,2.0,139.46,139.39,140.1137]
[1740849427176,4.0,139.46,139.39,140.1137]
[1740849427675,2.0,139.48,139.4,18.64964886]
[1740849427875,4.0,139.51,139.42,18.64964886]
[1740849428080,4.0,139.51,139.45,20.0]
[1740849428787,4.0,139.51,139.46,7.1705]
[1740849429283,2.0,139.51,139.46,7.1705]
[1740849429476,4.0,139.51,139.46,7.1705]
[1740849429887,2.0,139.51,139.46,7.1705]
[1740849430582,2.0,139.5,139.46,7.1705]
[1740849431180,2.0,139.49,139.42,118.88004886]
[1740849431489,2.0,139.48,139.43,7.172]
[1740849431687,4.0,139.47,139.43,7.172]
[1740849431987,2.0,139.46,139.43,7.172]
[1740849432592,2.0,139.46,139.42,7.1725]
[1740849432786,4.0,139.46,139.42,7.1725]
[1740849433297,2.0,139.49,139.42,25.1039]
[1740849433504,4.0,139.49,139.42,25.1039]
[1740849433790,4.0,139.5,139.42,25.1039]
[1740849435588,0.063,139.51,139.42,25.1039]
[1740849435589,4.063,139.51,139.42,82.3]
[1740849435791,4.0,139.5,139.44,17.9288]
[1740849437483,0.063,139.51,139.44,17.9288]
[1740849437484,4.063,139.51,139.44,17.9288]
[1740849437793,2.063,139.51,139.45,10.1]
[1740849438004,2.063,139.51,139.46,132.96]
[1740849438179,2.0,139.5,139.46,132.96]
[1740849438599,6.67692485,139.5,139.46,132.96]
[1740849439702,8.67692485,139.5,139.47,7.17]
[1740849439993,2.0,139.49,139.46,140.1305]
[1740849440193,6.67692485,139.49,139.46,140.1305]
[1740849441090,10.835184,139.48,139.46,140.1305]
[1740849441897,15.51210885,139.48,139.46,140.1305]
[1740849442280,4.67692485,139.48,139.46,140.1305]
[1740849442894,0.063,139.51,139.47,18.64964886]
[1740849444307,1.79861198,139.5,139.48,7.1694]
[1740849445400,0.063,139.51,139.48,7.1694]
[1740849445599,2.063,139.51,139.48,7.1694]
[1740849445902,0.063,139.51,139.48,7.1694]
[1740849447097,0.063,139.51,139.49,18.64964886]
[1740849447706,0.063,139.51,139.5,25.81804886]
[1740849448112,0.063,139.51,139.5,108.11804886]
[1740849451314,0.063,139.51,139.5,89.4684]
[1740849451532,0.063,139.51,139.5,82.3]
[1740849451724,0.063,139.51,139.5,89.4684]
[1740849452628,0.063,139.51,139.48,7.1694]
[1740849454625,2.0,139.49,139.46,140.1303]
[1740849454830,2.0,139.48,139.44,132.92]
[1740849456316,2.0,139.48,139.44,140.0914]
[1740849456630,2.0,139.48,139.44,132.92]
[1740849456814,2.0,139.48,139.44,7.1713]
[1740849457325,2.0,139.48,139.43,7.1718]
[1740849458224,2.0,139.49,139.43,7.1718]
[1740849458526,2.0,139.47,139.43,7.1718]
[1740849458703,2.0,139.42,139.35,82.3]
[1740849458903,2.0,139.4,139.35,25.1161]
[1740849459210,2.0,139.4,139.35,7.1761]
[1740849460125,4.0,139.44,139.37,7.1751]
[1740849460419,2.0,139.42,139.37,7.1751]
[1740849461001,2.0,139.41,139.37,7.1751]
[1740849461427,2.0,139.41,139.34,142.38]
[1740849461613,2.0,139.38,139.35,7.1761]
[1740849462320,2.0,139.38,139.34,140.1165]
[1740849463828,2.0,139.37,139.33,7.2071]
[1740849464136,2.0,139.37,139.33,0.03]
[1740849464335,2.0,139.38,139.33,0.03]
[1740849465814,2.0,139.37,139.33,0.03]
[1740849466410,1.7,139.37,139.33,7.2072]
[1740849466937,1.7,139.36,139.33,7.2072]
[1740849468107,1.7,139.38,139.33,7.2072]
[1740849468307,1.7,139.36,139.33,7.2072]
[1740849468527,1.7,139.36,139.33,25.1502]
[1740849468730,1.7,139.38,139.33,25.1502]
[1740849468912,1.7,139.36,139.33,25.1502]
[1740849469818,1.7,139.39,139.33,25.1502]
[1740849470118,1.7,139.4,139.34,18.64964886]
[1740849470316,1.7,139.38,139.34,18.64964886]
[1740849470518,1.7,139.42,139.35,9.5]
[1740849470726,1.5044,139.43,139.37,18.64964886]
[1740849470918,3.7,139.45,139.37,18.64964886]
[1740849471439,1.7,139.45,139.37,18.64964886]
[1740849471633,3.7,139.45,139.38,25.1111]
[1740849472114,1.7,139.42,139.38,25.1111]
[1740849472316,3.7,139.45,139.38,25.1111]
[1740849472839,3.7,139.46,139.39,18.64964886]
[1740849473034,1.7,139.45,139.39,18.64964886]
[1740849473545,1.7,139.44,139.4,7.1736]
[1740849475040,1.7,139.41,139.37,7.1751]
[1740849475915,1.7,139.39,139.37,7.1751]
[1740849476220,2.0,139.42,139.37,7.1751]
[1740849476221,3.7,139.42,139.37,7.1751]
[1740849476412,1.7,139.42,139.37,7.1751]
[1740849476618,3.7,139.42,139.37,7.1751]
[1740849476915,7.1714,139.45,139.37,43.76254886]
[1740849476916,1.7,139.45,139.37,43.76254886]
[1740849477117,1.7,139.44,139.38,18.94964886]
[1740849477720,1.7,139.46,139.4,18.64964886]
[1740849477921,1.7,139.46,139.4,27.78964886]
[1740849478421,1.7,139.47,139.4,27.78964886]
[1740849478829,5.2044,139.48,139.4,110.38964886]
[1740849479137,5.2044,139.48,139.42,18.64964886]
[1740849479138,1.5044,139.48,139.42,18.64964886]
[1740849479329,1.7,139.49,139.42,18.64964886]
[1740849479527,1.7,139.49,139.41,1.50557827]
[1740849479731,1.7,139.44,139.39,107.4093]
[1740849479927,1.7,139.44,139.39,89.4741]
[1740849482014,1.7,139.45,139.4,18.64964886]
[1740849482241,2.0,139.47,139.41,7.173]
[1740849482242,1.7,139.47,139.41,7.173]
[1740849482446,3.7,139.47,139.41,7.173]
[1740849482647,3.7,139.46,139.41,7.173]
[1740849483142,3.7,139.46,139.4,18.64964886]
[1740849483330,1.7,139.44,139.39,82.3]
[1740849483642,1.7,139.41,139.37,218.1]
[1740849483818,1.7,139.41,139.37,89.4749]
[1740849484016,3.7,139.41,139.34,218.1]
[1740849484342,1.7,139.39,139.35,7.1759]
[1740849484841,1.7,139.4,139.35,7.1759]
[1740849485245,3.7,139.41,139.35,7.1759]
[1740849485453,1.7,139.39,139.35,7.1759]
[1740849485823,3.7,139.41,139.35,7.1759]
[1740849486033,1.7,139.39,139.35,7.1759]
[1740849486243,3.7,139.41,139.35,7.1759]
[1740849486848,1.7,139.4,139.34,242.90964886]
[1740849487037,3.7,139.41,139.35,18.64964886]
[1740849488058,3.7,139.41,139.34,231.4365]
[1740849488256,1.7,139.37,139.34,224.26]
[1740849488552,1.7,139.37,139.34,141.96]
[1740849488951,1.7,139.37,139.34,133.0]
[1740849489749,1.7,139.39,139.34,140.1765]
[1740849489957,1.7,139.4,139.35,18.64964886]
[1740849490128,3.7,139.42,139.35,18.64964886]
[1740849490458,1.7,139.43,139.37,18.64964886]
[1740849490639,1.7,139.42,139.37,18.64964886]
[1740849490841,1.7,139.42,139.37,27.52964886]
[1740849491038,1.7,139.42,139.37,8.88]
[1740849491241,1.7,139.4,139.37,8.88]
[1740849492541,1.7,139.4,139.38,7.1746]
[1740849493128,1.7,139.42,139.38,7.1746]
[1740849493327,1.7,139.43,139.38,7.1746]
[1740849493754,1.7,139.4,139.38,7.1746]
[1740849494360,1.7,139.42,139.38,7.1746]
[1740849494532,1.7,139.41,139.38,7.1746]
[1740849494735,1.7,139.42,139.38,7.1746]
[1740849494953,1.7,139.4,139.38,7.1746]
[1740849495157,1.7,139.43,139.38,7.1746]
[1740849495355,1.7,139.4,139.38,7.1746]
[1740849495552,1.7,139.43,139.38,7.1746]
[1740849495764,1.7,139.43,139.38,25.1111]
[1740849496461,3.3192,139.44,139.38,25.1111]
[1740849496637,3.3192,139.44,139.39,18.64964886]
[1740849497068,1.7,139.44,139.39,18.64964886]
[1740849497460,1.7,139.44,139.39,100.94964886]
[1740849497660,1.7,139.44,139.39,102.45523532]
[1740849498253,1.7,139.44,139.41,18.64964886]
[1740849498562,1.7,139.48,139.43,18.64964886]
[1740849498770,1.7,139.47,139.43,109.66964886]
[1740849500437,1.7,139.47,139.44,7.1715]
[1740849500637,1.7,139.49,139.44,7.1715]
[1740849500869,3.7,139.5,139.44,7.1715]
[1740849501332,1.7,139.47,139.44,7.1715]
[1740849502261,3.7,139.5,139.44,7.1715]
[1740849502433,3.7,139.5,139.45,18.64964886]
[1740849502434,1.7,139.5,139.45,18.64964886]
[1740849502762,1.7,139.5,139.45,233.94964886]
[1740849502948,1.7,139.49,139.45,233.94964886]
[1740849504057,1.7,139.47,139.45,133.0]
[1740849504957,1.7,139.47,139.45,140.1707]
[1740849505943,1.7,139.48,139.45,140.1707]
[1740849506462,1.7,139.49,139.45,140.1707]
[1740849506756,1.7,139.47,139.45,140.1707]
[1740849508855,1.7,139.49,139.45,140.1707]
[1740849509866,1.7,139.5,139.45,158.0982]
[1740849510170,1.7,139.5,139.46,18.64964886]
[1740849510768,1.7,139.5,139.47,7.17]
[1740849511165,1.7,139.5,139.47,25.095]
[1740849512372,0.063,139.51,139.47,25.095]
[1740849512373,0.063,139.51,139.49,7.1689]
[1740849515075,0.0001,139.51,139.5,18.64964886]
[1740849515277,0.0001,139.51,139.5,100.94964886]
[1740849516347,0.0001,139.51,139.5,108.11804886]
[1740849517583,0.0001,139.51,139.5,265.74804886]
[1740849517768,0.0001,139.51,139.5,244.21804886]
[1740849518369,0.0001,139.51,139.5,265.74804886]
[1740849521506,0.0001,139.51,139.5,269.37822295]
[1740849524605,1.7,139.6,139.54,18.64964886]
[1740849524812,1.7,139.6,139.56,18.64964886]
[1740849525310,1.7,139.6,139.56,100.94964886]
[1740849526200,1.7,139.6,139.57,7.1648]
[1740849527203,1.7,139.6,139.58,18.64964886]
[1740849528096,1.7,139.6,139.59,7.1638]
[1740849528597,1.763,139.62,139.59,7.1638]
[1740849530008,0.063,139.62,139.59,107.3733]
[1740849531581,1.763,139.62,139.59,89.4638]
[1740849531795,1.763,139.6,139.59,89.4638]
[1740849532114,1.763,139.6,139.59,82.3]
[1740849532297,1.763,139.6,139.57,7.1645]
[1740849533195,1.763,139.6,139.56,7.1653]
[1740849534411,1.763,139.6,139.56,25.0787]
[1740849535113,1.763,139.6,139.57,18.64964886]
[1740849535287,1.763,139.6,139.58,7.1643]
[1740849535808,0.063,139.6,139.58,7.1643]
[1740849537399,1.763,139.6,139.58,7.1643]
[1740849540303,1.763,139.6,139.57,82.3]
[1740849540604,1.763,139.6,139.57,89.4646]
[1740849540797,1.763,139.6,139.57,82.3]
[1740849541106,1.7,139.59,139.56,7.165]
[1740849541314,0.063,139.6,139.57,18.64964886]
[1740849541487,1.763,139.6,139.57,18.64964886]
[1740849541695,0.063,139.6,139.57,18.64964886]
[1740849542623,0.063,139.6,139.58,7.1643]
[1740849543991,1.763,139.6,139.58,7.1643]
[1740849544301,1.7,139.59,139.56,7.1653]
[1740849544830,1.7,139.58,139.55,140.0457]
[1740849545122,3.7,139.58,139.55,140.0458]
[1740849546106,1.7,139.57,139.55,132.88]
[1740849546301,1.7,139.57,139.52,15.0274]
[1740849546703,1.7,139.57,139.52,15.0074]
[1740849547215,1.7,139.57,139.52,32.9259]
[1740849548522,1.7,139.58,139.54,25.0824]
[1740849549016,3.763,139.6,139.54,25.0824]
[1740849549322,1.7,139.58,139.54,107.3824]
[1740849550619,1.7,139.59,139.54,107.3824]
[1740849551108,1.7,139.58,139.54,107.3824]
[1740849551416,1.7,139.59,139.54,107.3824]
[1740849552028,1.763,139.6,139.55,18.64964886]
[1740849554428,1.763,139.6,139.57,18.64964886]
[1740849554723,1.763,139.6,139.57,100.94964886]
[1740849556026,1.763,139.6,139.57,108.66964886]
[1740849556228,0.063,139.6,139.59,45.81344886]
[1740849557831,0.063,139.6,139.59,7.1638]
[1740849558515,0.063,139.6,139.58,7.1643]
[1740849562430,0.063,139.6,139.59,18.64964886]
[1740849563239,0.063,139.6,139.59,25.81344886]
[1740849565947,0.063,139.6,139.59,108.11344886]
[1740849566838,0.0001,139.6,139.59,108.11344886]
[1740849569439,0.0001,139.6,139.59,89.4638]
[1740849570440,0.0001,139.6,139.59,82.3]
[1740849570839,1.7001,139.6,139.57,7.1646]
[1740849571045,1.7,139.58,139.57,7.1646]
[1740849571547,1.7001,139.6,139.57,7.1646]
[1740849571955,0.0001,139.6,139.57,107.3767]
[1740849572124,0.0001,139.6,139.58,18.64964886]
[1740849572946,0.0001,139.6,139.59,7.1638]
[1740849578844,0.0001,139.6,139.59,7.1938]
[1740849580636,0.0001,139.6,139.59,25.84344886]
[1740849583555,0.0001,139.6,139.59,108.14344886]
[1740849583758,0.0001,139.6,139.59,89.4938]
[1740849584657,0.0001,139.6,139.59,82.33]
[1740849585349,0.0001,139.6,139.59,89.4938]
[1740849587248,0.0001,139.6,139.59,108.14344886]
[1740849590954,0.0001,139.6,139.59,129.72344886]
[1740849591260,0.063,139.64,139.6,18.64964886]
[1740849591445,0.063,139.64,139.61,7.32]
[1740849592253,0.063,139.64,139.62,7.1622]
[1740849592459,0.063,139.64,139.63,18.64964886]
[1740849593463,0.063,139.64,139.63,25.81134886]
[1740849600863,0.063,139.64,139.63,7.1617]
[1740849601066,0.063,139.64,139.63,25.81134886]
[1740849601964,10.72285384,139.73,139.69,2.0]
[1740849602265,10.72285384,139.73,139.69,225.38]
[1740849602440,10.72285384,139.73,139.69,7.28]
[1740849602951,7.6293,139.72,139.63,25.0661]
[1740849603168,14.7868,139.72,139.63,32.3461]
[1740849603468,0.063,139.64,139.63,50.99574886]
[1740849603649,7.6293,139.72,139.64,18.64964886]
[1740849605566,7.6293,139.72,139.65,17.9018]
[1740849605769,7.6293,139.72,139.66,18.64964886]
[1740849606366,7.6293,139.72,139.65,17.9018]
[1740849607253,7.6293,139.72,139.66,18.64964886]
[1740849607567,7.6293,139.72,139.67,25.059]
[1740849615450,7.6923,139.72,139.67,25.059]
[1740849616177,7.6923,139.72,139.67,7.1597]
[1740849616478,14.8495,139.72,139.66,7.1601]
[1740849616976,14.8495,139.72,139.63,17.9334]
[1740849617666,7.6923,139.72,139.63,17.9334]
[1740849617867,7.6923,139.72,139.64,18.64964886]
[1740849618669,7.6923,139.72,139.64,104.45286114]
[1740849618876,1.6328,139.72,139.64,104.45286114]
[1740849619077,1.6328,139.72,139.66,18.64964886]
[1740849619270,1.6328,139.72,139.68,18.64964886]
[1740849619776,1.6328,139.72,139.67,7.14]
[1740849620879,1.6328,139.72,139.68,7.1592]
[1740849621597,8.79,139.72,139.66,7.1602]
[1740849621884,1.6328,139.72,139.66,25.0608]
[1740849622282,1.6328,139.72,139.67,18.64964886]
[1740849623284,1.6328,139.72,139.65,176.47214886]
[1740849624172,1.6328,139.72,139.65,233.70964886]
[1740849624360,1.6328,139.72,139.67,18.64964886]
[1740849626886,1.6328,139.72,139.68,25.0572]
[1740849630466,1.6328,139.72,139.69,18.64964886]
[1740849630779,1.6328,139.72,139.7,7.1581]
[1740849633090,1.6328,139.72,139.68,25.0572]
[1740849638497,1.6328,139.72,139.67,100.94964886]
[1740849638498,1.6328,139.72,139.67,82.3]
[1740849638692,6.6349,139.71,139.65,139.9205]
[1740849639492,7.1581,139.7,139.65,139.9205]
[1740849641191,7.1581,139.7,139.65,132.76]
[1740849642301,7.1581,139.7,139.65,139.9207]
[1740849642485,7.1581,139.7,139.65,7.1607]
[1740849642687,13.7927,139.71,139.65,7.1607]
[1740849642883,6.6349,139.71,139.65,7.1607]
[1740849643081,6.6349,139.71,139.63,18.67964886]
[1740849644601,13.7926,139.71,139.63,18.67964886]
[1740849645300,13.7926,139.71,139.64,7.1612]
[1740849647082,7.1587,139.69,139.63,0.03]
[1740849647987,8.7491,139.7,139.63,0.03]
[1740849650696,1.5907,139.7,139.63,0.03]
[1740849651596,1.5907,139.7,139.63,18.67964886]
[1740849652802,1.5907,139.7,139.64,25.0643]
[1740849653799,1.5907,139.7,139.65,18.64964886]
[1740849654598,1.5907,139.7,139.66,7.1602]
[1740849655213,1.5907,139.7,139.65,18.64964886]
[1740849655411,1.5907,139.7,139.65,25.81014886]
[1740849658995,1.5907,139.7,139.65,43.71194886]
[1740849661289,0.063,139.72,139.67,18.64964886]
[1740849661707,0.063,139.7,139.67,18.64964886]
[1740849662105,0.063,139.7,139.67,100.94964886]
[1740849662996,0.063,139.7,139.69,38.64964886]
[1740849663198,0.063,139.72,139.7,7.1581]
[1740849663708,0.063,139.72,139.71,18.64964886]
[1740849665489,0.063,139.72,139.71,25.80724886]
[1740849667910,0.0001,139.72,139.71,109.60976246]
[1740849668107,0.0001,139.72,139.71,116.56976246]
[1740849672118,0.0001,139.72,139.71,115.06724886]
[1740849678716,0.0001,139.72,139.71,117.06724886]
[1740849679021,0.0001,139.75,139.73,38.64964886]
[1740849679227,0.0001,139.75,139.74,18.44463775]
[1740849680445,0.0001,139.75,139.74,27.10272765]
[1740849680934,0.0001,139.75,139.74,159.80272765]
[1740849681141,0.063,139.78,139.77,20.0]
[1740849681142,0.0001,139.78,139.77,20.0]
[1740849681312,0.0001,139.78,139.77,127.90964886]
[1740849682204,1.5666,139.84,139.78,18.64964886]
[1740849682428,1.5666,139.84,139.8,18.64964886]
[1740849682919,1.5666,139.84,139.8,100.94964886]
[1740849682920,0.063,139.84,139.8,100.94964886]
[1740849683117,0.063,139.84,139.81,1.50122215]
[1740849683429,0.063,139.84,139.81,83.80122215]
[1740849683629,0.063,139.84,139.83,18.64964886]
[1740849684508,0.063,139.84,139.83,25.80114886]
[1740849685115,0.063,139.84,139.83,108.10114886]
[1740849685319,0.063,139.84,139.83,109.60213511]
[1740849685624,0.063,139.84,139.83,108.10114886]
[1740849686405,0.063,139.84,139.83,243.90114886]
[1740849689033,0.063,139.86,139.85,20.0]
[1740849689338,0.0001,139.86,139.85,120.94964886]
[1740849689513,0.0001,139.86,139.85,253.56964886]
[1740849691210,0.0001,139.86,139.85,260.72014886]
[1740849692132,0.0001,139.86,139.85,240.72014886]
[1740849696768,0.03,139.92,139.9,20.0]
[1740849696935,0.03,139.92,139.91,18.64964886]
[1740849697436,0.03,139.92,139.91,108.09704886]
[1740849699440,0.03,139.92,139.91,82.3]
[1740849699641,0.03,139.92,139.9,6.94]
[1740849701333,0.03,139.92,139.9,14.0878]
[1740849704547,0.03,139.92,139.9,6.94]